fUST/lending_fUST_20241214
["ID","MTS","AMOUNT","RATE_DAILY","PERIOD"]
[345340340,1734161439996,-431.60463864,0.00028493,7]
[345340342,1734161440005,-500.0,0.00028493,7]
[345340344,1734161440015,-500.0,0.00028493,7]
[345340346,1734161440025,-544.77,0.00028493,7]
[345340348,1734161440034,-500.0,0.00028493,7]
[345340350,1734161440044,-500.0,0.00028493,7]
[345340352,1734161440054,-500.0,0.00028493,7]
[345340354,1734161440063,-500.0,0.00028493,7]
[345340356,1734161440073,-712.64,0.00028493,7]
[345340358,1734161440082,-629.89,0.00028493,7]
[345340360,1734161440092,-500.0,0.00028493,7]
[345340362,1734161440101,-500.0,0.00028493,7]
[345340364,1734161440111,-500.0,0.00028493,7]
[345340366,1734161440122,-500.0,0.00028493,7]
[345340368,1734161440132,-500.0,0.00028493,7]
[345340370,1734161440142,-500.0,0.00028493,7]
[345340372,1734161440152,-500.0,0.00028493,7]
[345340374,1734161440161,-500.0,0.00028493,7]
[345340375,1734161440171,-500.0,0.00028493,7]
[345340376,1734161440181,-500.0,0.00028493,7]
[345340377,1734161440191,-500.0,0.00028493,7]
[345340378,1734161440202,-1506.5,0.00028493,7]
[345340379,1734161440212,-500.0,0.00028493,7]
[345340380,1734161440222,-625.51690792,0.00028493,7]
[345340381,1734161440232,-500.0,0.00028493,7]
[345340382,1734161440243,-500.0,0.00028493,7]
[345340383,1734161440253,-500.0,0.00028493,7]
[345340384,1734161440263,-847.5,0.00028493,7]
[345340385,1734161440273,-1187.82,0.00028493,7]
[345340386,1734161440282,-500.0,0.00028493,7]
[345340387,1734161440292,-500.0,0.00028493,7]
[345340388,1734161440302,-602.18,0.00028493,7]
[345340389,1734161440311,-500.0,0.00028493,7]
[345340390,1734161440321,-814.07,0.00028493,7]
[345340392,1734161440330,-500.0,0.00028493,7]
[345340393,1734161440340,-500.0,0.00028493,7]
[345340395,1734161440349,-680.79,0.00028493,7]
[345340397,1734161440359,-609.36,0.00028493,7]
[345340400,1734161440369,-500.0,0.00028493,7]
[345340402,1734161440378,-500.0,0.00028493,7]
[345340403,1734161440387,-500.0,0.00028493,7]
[345340406,1734161440397,-2681.08,0.00028493,7]
[345340408,1734161440407,-535.56,0.00028493,7]
[345340410,1734161440416,-539.17,0.00028493,7]
[345340412,1734161440425,-500.0,0.00028493,7]
[345340414,1734161440435,-500.0,0.00028493,7]
[345340416,1734161440444,-500.0,0.00028493,7]
[345340418,1734161440453,-793.59,0.00028493,7]
[345340420,1734161440463,-500.0,0.00028493,7]
[345340422,1734161440472,-500.0,0.00028493,7]
[345340424,1734161440482,-564.92,0.00028493,7]
[345340426,1734161440491,-500.0,0.00028493,7]
[345340428,1734161440502,-1148.77,0.00028493,7]
[345340430,1734161440512,-8029.27,0.00028493,7]
[345340432,1734161440522,-500.0,0.00028493,7]
[345340434,1734161440531,-1349.56,0.00028493,7]
[345340436,1734161440546,-3121.12,0.00028493,5]
[345340438,1734161440556,-5585.71,0.00028493,7]
[345340440,1734161440565,-534.24,0.00028493,7]
[345340442,1734161440577,-500.0,0.00028493,7]
[345340444,1734161440593,-500.0,0.00028493,7]
[345340446,1734161440602,-225.58042406,0.0002853,2]
[345340448,1734161440612,-428.38,0.00028675,15]
[345340450,1734161440622,-155.9,0.000287,31]
[345340452,1734161440631,-155.9,0.000287,31]
[345340454,1734161440640,-442.687,0.0002876,2]
[345340456,1734161440649,-500.0,0.00028767,7]
[345340458,1734161440659,-500.0,0.00028767,7]
[345340460,1734161440669,-602.83,0.00028767,7]
[345340462,1734161440678,-500.0,0.00028767,7]
[345340464,1734161440687,-846.77,0.00028767,7]
[345340466,1734161440696,-1000.0,0.00028767,2]
[345340468,1734161440705,-500.0,0.00028767,7]
[345340470,1734161440715,-500.0,0.00028767,7]
[345340472,1734161440724,-761.58,0.00028767,7]
[345340474,1734161440733,-500.0,0.00028767,7]
[345340477,1734161440743,-610.57,0.00028767,7]
[345340478,1734161440752,-500.0,0.00028767,7]
[345340481,1734161440761,-500.0,0.00028767,7]
[345340483,1734161440780,-168.0,0.00028767,7]
[345340485,1734161440789,-880.22,0.00028767,7]
[345340487,1734161440799,-786.14,0.00028767,7]
[345340489,1734161440808,-500.0,0.00028767,7]
[345340491,1734161440817,-500.0,0.00028767,7]
[345340493,1734161440827,-544.77,0.00028767,7]
[345340495,1734161440836,-500.0,0.00028767,7]
[345340497,1734161440846,-500.0,0.00028767,7]
[345340499,1734161440856,-500.0,0.00028767,7]
[345340501,1734161440865,-500.0,0.00028767,7]
[345340503,1734161440875,-712.64,0.00028767,7]
[345340505,1734161440885,-629.89,0.00028767,7]
[345340507,1734161440894,-500.0,0.00028767,9]
[345340509,1734161440903,-500.0,0.00028767,7]
[345340511,1734161440913,-500.0,0.00028767,7]
[345340513,1734161440923,-207.62764072,0.00028767,7]
[345340515,1734161440932,-500.0,0.00028767,7]
[345340517,1734161440942,-500.0,0.00028767,7]
[345340519,1734161440951,-367.47213511,0.00028767,7]
[345340521,1734161440961,-500.0,0.00028767,7]
[345340523,1734161440971,-500.0,0.00028767,7]
[345340525,1734161440980,-643.36921519,0.00028767,7]
[345340527,1734161440990,-500.0,0.00028767,7]
[345340529,1734161440999,-162.5738898,0.00028767,7]
[345340531,1734161441008,-1506.5,0.00028767,7]
[345340533,1734161441018,-500.0,0.00028767,7]
[345340535,1734161441027,-500.0,0.00028767,7]
[345340537,1734161441036,-500.0,0.00028767,7]
[345340539,1734161441045,-500.0,0.00028767,7]
[345340541,1734161441055,-847.5,0.00028767,7]
[345340543,1734161441064,-1187.82,0.00028767,7]
[345340545,1734161441074,-500.0,0.00028767,7]
[345340547,1734161441083,-500.0,0.00028767,7]
[345340549,1734161441092,-602.18,0.00028767,7]
[345340551,1734161441102,-500.0,0.00028767,7]
[345340553,1734161441111,-814.07,0.00028767,7]
[345340555,1734161441120,-500.0,0.00028767,7]
[345340557,1734161441129,-500.0,0.00028767,7]
[345340559,1734161441138,-680.79,0.00028767,7]
[345340561,1734161441148,-609.36,0.00028767,7]
[345340563,1734161441158,-500.0,0.00028767,7]
[345340565,1734161441167,-500.0,0.00028767,7]
[345340567,1734161441176,-500.0,0.00028767,7]
[345340569,1734161441185,-2681.08,0.00028767,7]
[345340571,1734161441194,-535.56,0.00028767,7]
[345340573,1734161441203,-539.17,0.00028767,7]
[345340575,1734161441212,-500.0,0.00028767,7]
[345340577,1734161441222,-500.0,0.00028767,7]
[345340579,1734161441231,-500.0,0.00028767,7]
[345340581,1734161441240,-793.59,0.00028767,7]
[345340583,1734161441249,-500.0,0.00028767,7]
[345340585,1734161441259,-500.0,0.00028767,7]
[345340596,1734161441354,-564.92,0.00028767,7]
[345340598,1734161441363,-500.0,0.00028767,7]
[345340600,1734161441373,-1148.77,0.00028767,7]
[345340602,1734161441383,-8029.27,0.00028767,7]
[345340605,1734161441393,-500.0,0.00028767,7]
[345340606,1734161441402,-1349.56,0.00028767,7]
[345340609,1734161441412,-3121.12,0.00028767,5]
[345340611,1734161441423,-5585.71,0.00028767,7]
[345340613,1734161441432,-534.24,0.00028767,7]
[345340615,1734161441441,-500.0,0.00028767,7]
[345340617,1734161441451,-616.3170029,0.00028767,7]
[345340619,1734161441460,-160.0,0.00028866,2]
[345340621,1734161441470,-303.14549832,0.00029,2]
[345340623,1734161441479,-154.24603426,0.00029,2]
[345340625,1734161441488,-303.14549832,0.00029,2]
[345340627,1734161441498,-1012.29696657,0.00029012,3]
[345340629,1734161441508,-500.0,0.00029041,7]
[345340631,1734161441518,-593.73847109,0.00029041,7]
[345340633,1734161441527,-602.83,0.00029041,7]
[345340635,1734161441536,-500.0,0.00029041,7]
[345340637,1734161441545,-846.77,0.00029041,7]
[345340639,1734161441555,-1000.0,0.00029041,2]
[345340641,1734161441564,-500.0,0.00029041,7]
[345340643,1734161441574,-500.0,0.00029041,7]
[345340645,1734161441589,-761.58,0.00029041,7]
[345340647,1734161441598,-500.0,0.00029041,7]
[345340649,1734161441608,-610.57,0.00029041,7]
[345340651,1734161441619,-500.0,0.00029041,7]
[345340653,1734161441628,-500.0,0.00029041,7]
[345340655,1734161441637,-168.0,0.00029041,7]
[345340657,1734161441647,-880.22,0.00029041,7]
[345340659,1734161441657,-786.14,0.00029041,7]
[345340661,1734161441667,-226.7184518,0.00029041,7]
[345340663,1734161441676,-500.0,0.00029041,7]
[345340665,1734161441686,-544.77,0.00029041,7]
[345340667,1734161441695,-500.0,0.00029041,7]
[345340669,1734161441704,-500.0,0.00029041,7]
[345340671,1734161441714,-500.0,0.00029041,7]
[345340673,1734161441723,-272.28279866,0.00029041,7]
[345340675,1734161441732,-712.64,0.00029041,7]
[345340677,1734161441742,-629.89,0.00029041,7]
[345340679,1734161441751,-500.0,0.00029041,7]
[345340681,1734161441760,-422.97441801,0.00029041,7]
[345340683,1734161441770,-500.0,0.00029041,7]
[345340684,1734161441779,-500.0,0.00029041,7]
[345340686,1734161441789,-500.0,0.00029041,7]
[345340688,1734161441798,-500.0,0.00029041,7]
[345340690,1734161441806,-500.0,0.00029041,7]
[345340692,1734161441815,-1506.5,0.00029041,7]
[345340694,1734161441825,-500.0,0.00029041,7]
[345340696,1734161441834,-500.0,0.00029041,7]
[345340698,1734161441844,-500.0,0.00029041,7]
[345340700,1734161441854,-172.9809537,0.00029041,7]
[345340703,1734161441864,-847.5,0.00029041,7]
[345340704,1734161441873,-1187.82,0.00029041,7]
[345340707,1734161441882,-500.0,0.00029041,7]
[345340709,1734161441892,-500.0,0.00029041,7]
[345340711,1734161441901,-602.18,0.00029041,7]
[345340713,1734161441911,-500.0,0.00029041,7]
[345340715,1734161441921,-814.07,0.00029041,7]
[345340717,1734161441930,-500.0,0.00029041,7]
[345340719,1734161441939,-500.0,0.00029041,7]
[345340721,1734161441949,-680.79,0.00029041,7]
[345340723,1734161441958,-609.36,0.00029041,7]
[345340725,1734161441968,-500.0,0.00029041,7]
[345340727,1734161441977,-500.0,0.00029041,7]
[345340729,1734161441986,-500.0,0.00029041,7]
[345340731,1734161441995,-2681.08,0.00029041,7]
[345340733,1734161442005,-535.56,0.00029041,7]
[345340735,1734161442017,-539.17,0.00029041,7]
[345340737,1734161442029,-500.0,0.00029041,7]
[345340739,1734161442038,-500.0,0.00029041,7]
[345340741,1734161442047,-500.0,0.00029041,7]
[345340743,1734161442057,-793.59,0.00029041,7]
[345340745,1734161442066,-500.0,0.00029041,7]
[345340747,1734161442075,-500.0,0.00029041,7]
[345340749,1734161442085,-564.92,0.00029041,7]
[345340751,1734161442094,-500.0,0.00029041,7]
[345340753,1734161442103,-1148.77,0.00029041,7]
[345340755,1734161442112,-8029.27,0.00029041,7]
[345340757,1734161442122,-466.4261572,0.00029041,7]
[345340759,1734161442132,-1349.56,0.00029041,7]
[345340761,1734161442141,-3121.12,0.00029041,5]
[345340762,1734161442150,-5585.71,0.00029041,7]
[345340765,1734161442159,-534.24,0.00029041,7]
[345340767,1734161442168,-500.0,0.00029041,7]
[345340768,1734161442178,-202.12479306,0.00029041,120]
[345340770,1734161442187,-225.58042406,0.00029147,2]
[345340773,1734161442197,-303.14549832,0.0002929,2]
[345340775,1734161442207,-303.14549832,0.0002929,2]
[345340777,1734161442217,-823.0,0.00029294,2]
[345340779,1734161442227,-500.0,0.00029315,7]
[345340781,1734161442237,-602.83,0.00029315,7]
[345340783,1734161442246,-500.0,0.00029315,7]
[345340785,1734161442256,-846.77,0.00029315,7]
[345340787,1734161442266,-1000.0,0.00029315,2]
[345340789,1734161442276,-500.0,0.00029315,7]
[345340791,1734161442285,-500.0,0.00029315,7]
[345340793,1734161442295,-761.58,0.00029315,7]
[345340795,1734161442304,-500.0,0.00029315,7]
[345340797,1734161442313,-610.57,0.00029315,7]
[345340799,1734161442323,-500.0,0.00029315,7]
[345340801,1734161442332,-500.0,0.00029315,7]
[345340803,1734161442342,-168.0,0.00029315,7]
[345340805,1734161442351,-880.22,0.00029315,7]
[345340807,1734161442360,-786.14,0.00029315,7]
[345340809,1734161442369,-500.0,0.00029315,7]
[345340811,1734161442381,-544.77,0.00029315,7]
[345340813,1734161442390,-500.0,0.00029315,7]
[345340815,1734161442399,-500.0,0.00029315,7]
[345340817,1734161442409,-569.11260351,0.00029315,7]
[345340819,1734161442418,-712.64,0.00029315,7]
[345340821,1734161442427,-629.89,0.00029315,7]
[345340823,1734161442437,-500.0,0.00029315,7]
[345340825,1734161442447,-500.0,0.00029315,7]
[345340827,1734161442456,-500.0,0.00029315,7]
[345340829,1734161442466,-500.0,0.00029315,7]
[345340831,1734161442475,-500.0,0.00029315,7]
[345340833,1734161442484,-500.0,0.00029315,7]
[345340835,1734161442493,-1506.5,0.00029315,7]
[345340837,1734161442502,-500.0,0.00029315,7]
[345340839,1734161442513,-500.0,0.00029315,7]
[345340841,1734161442522,-500.0,0.00029315,7]
[345340843,1734161442532,-847.5,0.00029315,7]
[345340845,1734161442541,-1187.82,0.00029315,7]
[345340847,1734161442550,-500.0,0.00029315,7]
[345340850,1734161442559,-251.40242566,0.00029315,7]
[345340852,1734161442569,-602.18,0.00029315,7]
[345340854,1734161442578,-500.0,0.00029315,7]
[345340856,1734161442588,-814.07,0.00029315,7]
[345340858,1734161442602,-500.0,0.00029315,7]
[345340860,1734161442612,-500.0,0.00029315,7]
[345340862,1734161442621,-680.79,0.00029315,7]
[345340864,1734161442631,-609.36,0.00029315,7]
[345340866,1734161442641,-500.0,0.00029315,7]
[345340868,1734161442651,-500.0,0.00029315,7]
[345340870,1734161442660,-500.0,0.00029315,7]
[345340872,1734161442671,-2681.08,0.00029315,7]
[345340874,1734161442680,-535.56,0.00029315,7]
[345340876,1734161442690,-539.17,0.00029315,7]
[345340878,1734161442699,-500.0,0.00029315,7]
[345340880,1734161442709,-373.74821225,0.00029315,7]
[345340882,1734161442718,-500.0,0.00029315,7]
[345340884,1734161442727,-793.59,0.00029315,7]
[345340886,1734161442737,-500.0,0.00029315,7]
[345340888,1734161442747,-500.0,0.00029315,7]
[345340890,1734161442757,-564.92,0.00029315,7]
[345340892,1734161442768,-500.0,0.00029315,7]
[345340894,1734161442777,-1148.77,0.00029315,7]
[345340896,1734161442786,-8029.27,0.00029315,7]
[345340898,1734161442796,-3121.12,0.00029315,5]
[345340900,1734161442805,-5585.71,0.00029315,7]
[345340902,1734161442815,-534.24,0.00029315,7]
[345340904,1734161442824,-185.85104027,0.00029315,7]
[345340906,1734161442833,-155.9,0.000294,31]
[345340908,1734161442844,-155.9,0.000294,31]
[345340910,1734161442853,-303.14549832,0.0002958,2]
[345340913,1734161442863,-303.14549832,0.0002958,2]
[345340915,1734161442873,-500.0,0.00029589,7]
[345340917,1734161442883,-602.83,0.00029589,7]
[345340919,1734161442892,-500.0,0.00029589,7]
[345340922,1734161442903,-846.77,0.00029589,7]
[345340924,1734161442912,-1000.0,0.00029589,2]
[345340927,1734161442921,-500.0,0.00029589,7]
[345340930,1734161442931,-500.0,0.00029589,7]
[345340933,1734161442941,-761.58,0.00029589,7]
[345340936,1734161442951,-500.0,0.00029589,7]
[345340939,1734161442960,-610.57,0.00029589,7]
[345340942,1734161442970,-500.0,0.00029589,7]
[345340945,1734161442979,-160.09081577,0.00029589,7]
[345340948,1734161442989,-168.0,0.00029589,7]
[345340951,1734161442998,-880.22,0.00029589,7]
[345340954,1734161443007,-786.14,0.00029589,7]
[345340956,1734161443018,-500.0,0.00029589,7]
[345340958,1734161443027,-544.77,0.00029589,7]
[345340960,1734161443037,-500.0,0.00029589,7]
[345340962,1734161443046,-500.0,0.00029589,7]
[345340964,1734161443055,-712.64,0.00029589,7]
[345340965,1734161443064,-629.89,0.00029589,7]
[345340967,1734161443074,-500.0,0.00029589,7]
[345340969,1734161443084,-500.0,0.00029589,7]
[345340971,1734161443093,-500.0,0.00029589,7]
[345340973,1734161443103,-500.0,0.00029589,7]
[345340975,1734161443113,-500.0,0.00029589,7]
[345340977,1734161443123,-500.0,0.00029589,7]
[345340979,1734161443133,-1506.5,0.00029589,7]
[345340981,1734161443142,-500.0,0.00029589,7]
[345340983,1734161443152,-306.2789697,0.00029589,7]
[345340985,1734161443162,-500.0,0.00029589,7]
[345340987,1734161443171,-847.5,0.00029589,7]
[345340989,1734161443181,-1187.82,0.00029589,7]
[345340991,1734161443191,-500.0,0.00029589,7]
[345340993,1734161443200,-602.18,0.00029589,7]
[345340995,1734161443209,-500.0,0.00029589,7]
[345340997,1734161443219,-814.07,0.00029589,7]
[345340999,1734161443229,-500.0,0.00029589,7]
[345341001,1734161443239,-500.0,0.00029589,7]
[345341003,1734161443248,-680.79,0.00029589,7]
[345341005,1734161443257,-609.36,0.00029589,7]
[345341007,1734161443267,-500.0,0.00029589,7]
[345341009,1734161443276,-500.0,0.00029589,7]
[345341010,1734161443285,-500.0,0.00029589,7]
[345341011,1734161443294,-2681.08,0.00029589,7]
[345341012,1734161443303,-535.56,0.00029589,7]
[345341013,1734161443313,-539.17,0.00029589,7]
[345341015,1734161443400,-500.0,0.00029589,7]
[345341017,1734161443409,-500.0,0.00029589,7]
[345341019,1734161443419,-793.59,0.00029589,7]
[345341021,1734161443429,-500.0,0.00029589,7]
[345341023,1734161443438,-500.0,0.00029589,7]
[345341026,1734161443449,-564.92,0.00029589,7]
[345341027,1734161443457,-500.0,0.00029589,7]
[345341029,1734161443466,-1148.77,0.00029589,7]
[345341032,1734161443476,-8029.27,0.00029589,7]
[345341034,1734161443485,-3121.12,0.00029589,5]
[345341036,1734161443495,-5585.71,0.00029589,7]
[345341038,1734161443504,-534.24,0.00029589,7]
[345341040,1734161443514,-18701.18271941,0.0002975,3]
[345341042,1734161443523,-225.58042406,0.00029763,2]
[345341044,1734161443533,-500.0,0.00029863,7]
[345341046,1734161443542,-602.83,0.00029863,7]
[345341048,1734161443551,-500.0,0.00029863,7]
[345341050,1734161443560,-846.77,0.00029863,7]
[345341052,1734161443570,-1000.0,0.00029863,2]
[345341054,1734161443580,-500.0,0.00029863,7]
[345341056,1734161443590,-500.0,0.00029863,7]
[345341058,1734161443603,-761.58,0.00029863,7]
[345341060,1734161443612,-500.0,0.00029863,7]
[345341061,1734161443621,-610.57,0.00029863,7]
[345341064,1734161443630,-500.0,0.00029863,7]
[345341066,1734161443641,-168.0,0.00029863,7]
[345341068,1734161443650,-880.22,0.00029863,7]
[345341070,1734161443659,-786.14,0.00029863,7]
[345341072,1734161443669,-500.0,0.00029863,7]
[345341074,1734161443679,-544.77,0.00029863,7]
[345341076,1734161443688,-500.0,0.00029863,7]
[345341078,1734161443697,-500.0,0.00029863,7]
[345341080,1734161443707,-712.64,0.00029863,7]
[345341082,1734161443716,-629.89,0.00029863,7]
[345341084,1734161443725,-500.0,0.00029863,7]
[345341086,1734161443734,-500.0,0.00029863,7]
[345341088,1734161443743,-500.0,0.00029863,7]
[345341090,1734161443753,-500.0,0.00029863,7]
[345341092,1734161443763,-500.0,0.00029863,7]
[345341094,1734161443772,-500.0,0.00029863,7]
[345341096,1734161443781,-1506.5,0.00029863,7]
[345341098,1734161443791,-500.0,0.00029863,7]
[345341100,1734161443800,-500.0,0.00029863,7]
[345341102,1734161443809,-847.5,0.00029863,7]
[345341104,1734161443819,-1187.82,0.00029863,7]
[345341106,1734161443833,-500.0,0.00029863,7]
[345341108,1734161443843,-602.18,0.00029863,7]
[345341110,1734161443852,-500.0,0.00029863,7]
[345341112,1734161443861,-814.07,0.00029863,7]
[345341114,1734161443871,-500.0,0.00029863,7]
[345341116,1734161443881,-500.0,0.00029863,7]
[345341118,1734161443891,-680.79,0.00029863,7]
[345341120,1734161443900,-609.36,0.00029863,7]
[345341122,1734161443910,-500.0,0.00029863,7]
[345341124,1734161443920,-500.0,0.00029863,7]
[345341126,1734161443931,-500.0,0.00029863,7]
[345341128,1734161443942,-2681.08,0.00029863,7]
[345341131,1734161443955,-535.56,0.00029863,7]
[345341133,1734161443965,-539.17,0.00029863,7]
[345341135,1734161443975,-500.0,0.00029863,7]
[345341137,1734161443984,-500.0,0.00029863,7]
[345341139,1734161443998,-793.59,0.00029863,7]
[345341141,1734161444008,-500.0,0.00029863,7]
[345341143,1734161444019,-500.0,0.00029863,7]
[345341145,1734161444033,-564.92,0.00029863,7]
[345341147,1734161444043,-500.0,0.00029863,7]
[345341149,1734161444053,-1148.77,0.00029863,7]
[345341151,1734161444062,-8029.27,0.00029863,7]
[345341153,1734161444072,-3121.12,0.00029863,5]
[345341155,1734161444081,-5585.71,0.00029863,7]
[345341157,1734161444091,-534.24,0.00029863,7]
[345341159,1734161444100,-303.14549832,0.0002987,2]
[345341161,1734161444110,-303.14549832,0.0002987,2]
[345341163,1734161444119,-151.0,0.00029969,7]
[345341165,1734161444128,-7138.44401978,0.0003,2]
[345341167,1734161444138,-7138.44401975,0.0003,2]
[345341169,1734161444147,-7138.44401975,0.0003,2]
[345341171,1734161444156,-7138.44401975,0.0003,2]
[345341173,1734161444166,-346.26326082,0.0003,3]
[345341176,1734161444175,-43369.79030953,0.0003,3]
[345341178,1734161444187,-2001.70043093,0.0003,30]
[345341180,1734161444197,-25615.97259274,0.0003,7]
[345341182,1734161444206,-247.0,0.0003,2]
[345341184,1734161444217,-155.9,0.000301,31]
[345341186,1734161444227,-155.9,0.000301,31]
[345341188,1734161444236,-155.9,0.000301,31]
[345341190,1734161444247,-155.9,0.000301,31]
[345341192,1734161444256,-155.9,0.000301,31]
[345341195,1734161444265,-155.9,0.000301,31]
[345341198,1734161444275,-155.9,0.000301,31]
[345341201,1734161444284,-65185.2701273,0.00030129,2]
[345341204,1734161444294,-1669.96697136,0.00030129,2]
[345341207,1734161444303,-153.791479,0.00030129,7]
[345341210,1734161444312,-151.583623,0.00030129,7]
[345341212,1734161444323,-151.0,0.00030129,7]
[345341214,1734161444332,-151.0,0.00030129,7]
[345341216,1734161444341,-151.0,0.00030129,7]
[345341218,1734161444351,-151.0,0.00030129,7]
[345341220,1734161444360,-151.0,0.00030129,7]
[345341222,1734161444369,-151.0,0.00030129,7]
[345341224,1734161444378,-151.0,0.00030129,7]
[345341226,1734161444388,-151.0,0.00030129,7]
[345341228,1734161444398,-151.0,0.00030129,7]
[345341230,1734161444407,-151.0,0.00030129,7]
[345341232,1734161444417,-151.0,0.00030129,7]
[345341234,1734161444426,-151.0,0.00030129,7]
[345341236,1734161444436,-151.0,0.00030129,7]
[345341238,1734161444445,-151.0,0.00030129,7]
[345341240,1734161444454,-151.0,0.00030129,7]
[345341242,1734161444464,-151.0,0.00030129,7]
[345341244,1734161444473,-297.52129,0.00030129,7]
[345341246,1734161444482,-151.0,0.00030129,7]
[345341248,1734161444491,-151.0,0.00030129,7]
[345341250,1734161444501,-151.0,0.00030129,7]
[345341252,1734161444510,-151.0,0.00030129,7]
[345341254,1734161444520,-151.0,0.00030129,7]
[345341256,1734161444529,-151.0,0.00030129,7]
[345341258,1734161444538,-151.0,0.00030129,7]
[345341260,1734161444547,-151.0,0.00030129,7]
[345341262,1734161444556,-151.0,0.00030129,7]
[345341264,1734161444565,-151.0,0.00030129,7]
[345341266,1734161444575,-151.0,0.00030129,7]
[345341268,1734161444584,-151.0,0.00030129,7]
[345341270,1734161444596,-151.0,0.00030129,7]
[345341272,1734161444606,-151.0,0.00030129,7]
[345341274,1734161444615,-151.0,0.00030129,7]
[345341276,1734161444625,-151.0,0.00030129,7]
[345341278,1734161444635,-231.0266906,0.00030129,7]
[345341280,1734161444644,-151.0,0.00030129,7]
[345341282,1734161444653,-151.0,0.00030129,7]
[345341284,1734161444663,-151.0,0.00030129,7]
[345341286,1734161444673,-151.0,0.00030129,7]
[345341288,1734161444682,-151.0,0.00030129,7]
[345341290,1734161444691,-151.0,0.00030129,7]
[345341292,1734161444701,-151.0,0.00030129,7]
[345341294,1734161444710,-151.0,0.00030129,7]
[345341296,1734161444719,-151.0,0.00030129,7]
[345341298,1734161444729,-151.0,0.00030129,7]
[345341300,1734161444738,-151.0,0.00030129,7]
[345341303,1734161444747,-151.0,0.00030129,7]
[345341305,1734161444757,-151.0,0.00030129,7]
[345341307,1734161444765,-151.0,0.00030129,7]
[345341309,1734161444775,-151.0,0.00030129,7]
[345341311,1734161444784,-151.0,0.00030129,7]
[345341313,1734161444793,-151.0,0.00030129,7]
[345341315,1734161444802,-205.361634,0.00030129,7]
[345341318,1734161444811,-151.0,0.00030129,7]
[345341321,1734161444820,-151.0,0.00030129,7]
[345341323,1734161444830,-151.0,0.00030129,7]
[345341325,1734161444841,-151.0,0.00030129,7]
[345341327,1734161444850,-151.0,0.00030129,7]
[345341329,1734161444859,-151.0,0.00030129,7]
[345341331,1734161444869,-151.0,0.00030129,7]
[345341333,1734161444878,-151.0,0.00030129,7]
[345341335,1734161444887,-151.0,0.00030129,7]
[345341337,1734161444897,-151.0,0.00030129,7]
[345341339,1734161444906,-204.603914,0.00030129,7]
[345341341,1734161444915,-462.061618,0.00030129,7]
[345341343,1734161444923,-462.061618,0.00030129,7]
[345341345,1734161444933,-462.061618,0.00030129,7]
[345341347,1734161444942,-462.061618,0.00030129,7]
[345341349,1734161444951,-262.612026,0.00030129,7]
[345341351,1734161444960,-462.061618,0.00030129,7]
[345341353,1734161444969,-262.612026,0.00030129,7]